[Event "4NCL Div 1 2018-19"]
[Site "Telford"]
[Date "2019.02.09"]
[Round "5.3"]
[White "Lupulescu, Constantin"]
[Black "Fodor, Tamas Jr."]
[Result "1/2-1/2"]
[ECO "E11"]
[WhiteElo "2601"]
[BlackElo "2520"]
[Annotator "ChessBase"]
[PlyCount "138"]
[EventDate "2018.11.10"]
[EventType "team-tourn"]
[EventCountry "GBR"]
[SourceTitle "playchess.com"]
[Source "ChessBase"]
[SourceQuality "1"]
[TimeControl "40/6000+30:3000+30"]

1. d4 {[%emt 0:00:00]} Nf6 {[%emt 0:00:00]} 2. c4 {[%emt 0:00:00]} e6 {[%emt 0:00:00]} 3. Nf3 {[%emt 0:00:16]} Bb4+ {[%emt 0:00:00]} 4. Bd2 {[%emt 0:00:06]} Qe7 {[%emt 0:00:21]} 5. g3 {[%emt 0:00:45]} Bxd2+ {[%emt 0:00:33]} 6. Qxd2 {[%emt 0:00:46]} Nc6 {[%emt 0:00:07]} 7. b3 {[%emt 0:00:59]} d5 {[%emt 0:00:13]} 8. Bg2 {[%emt 0:00:54]} O-O {[%emt 0:00:09]} 9. O-O {[%emt 0:00:48]} dxc4 {[%emt 0:00:08]} 10. bxc4 {[%emt 0:00:05]} e5 {[%emt 0:00:07]} 11. d5 {[%emt 0:00:30]} Nb8 {[%emt 0:00:08]} 12. Qe3 {[%emt 0:01:07]} Re8 {[%emt 0:03:09]} 13. Qa3 {[%emt 0:11:56]} Bg4 {[%emt 0:07:56]} 14. Qxe7 {[%emt 0:11:16]} Rxe7 {[%emt 0:00:36]} 15. Nc3 {[%emt 0:00:03]} Bxf3 {[%emt 0:01:47]} 16. Bxf3 {[%emt 0:00:15]} Na6 {[%emt 0:01:15]} 17. Rfd1 {[%emt 0:18:44]} Nc5 {[%emt 0:13:38]} 18. d6 {[%emt 0:01:27]} cxd6 {[%emt 0:00:19]} 19. Rxd6 {[%emt 0:00:10]} Rd7 {[%emt 0:01:33]} 20. Rxd7 {[%emt 0:04:47]} Nfxd7 {[%emt 0:00:26]} 21. Rb1 {[%emt 0:01:38]} Rb8 {[%emt 0:03:10]} 22. Bd5 {[%emt 0:05:09]} Kf8 {[%emt 0:04:01]} 23. f4 {[%emt 0:01:30]} Ke7 {[%emt 0:03:01]} 24. Kf2 {[%emt 0:02:04]} exf4 {[%emt 0:07:31]} 25. gxf4 {[%emt 0:00:12]} f5 {[%emt 0:00:24]} 26. Nb5 {[%emt 0:11:49]} Nf6 {[%emt 0:05:53]} 27. Bf3 {[%emt 0:06:39]} Nfe4+ {[%emt 0:10:44]} 28. Ke3 {[%emt 0:03:40]} Nd6 {[%emt 0:02:55]} 29. Nxd6 {[%emt 0:02:55]} Kxd6 {[%emt 0:00:13]} 30. Rd1+ {[%emt 0:01:09]} Ke6 {[%emt 0:01:25]} 31. Rd5 {[%emt 0:04:21]} b6 {[%emt 0:00:19]} 32. Kd4 {[%emt 0:00:36]} Rf8 {[%emt 0:03:08]} 33. Kc3 {[%emt 0:01:47]} Rf6 {[%emt 0:05:34]} 34. h4 {[%emt 0:04:00]} Rh6 {[%emt 0:02:19]} 35. h5 {[%emt 0:00:49]} g6 {[%emt 0:00:28]} 36. hxg6 {[%emt 0:00:23]} hxg6 {[%emt 0:00:11]} 37. Rd8 {[%emt 0:02:19]} Rh4 {[%emt 0:02:23]} 38. Bd5+ {[%emt 0:01:46]} Ke7 {[%emt 0:00:23]} 39. Rg8 {[%emt 0:01:51]} Rxf4 {[%emt 0:02:04]} 40. Rxg6 {[%emt 0:00:29]} Rg4 {[%emt 0:05:46]} 41. Rh6 {[%emt 0:57:03]} Rg3+ {[%emt 0:51:35]} 42. Bf3 {[%emt 0:00:00]} Ne6 {[%emt 0:00:00]} 43. Rh7+ {[%emt 0:00:00]} Rg7 {[%emt 0:00:00]} 44. Rh6 {[%emt 0:00:00]} Rg3 {[%emt 0:00:00]} 45. Kd2 {[%emt 0:00:00]} f4 {[%emt 0:00:00]} 46. Rh7+ {[%emt 0:00:00]} Rg7 {[%emt 0:00:00]} 47. Rxg7+ {[%emt 0:00:00]} Nxg7 {[%emt 0:00:00]} 48. Kd3 {[%emt 0:00:00]} Nf5 {[%emt 0:00:00]} 49. Ke4 {[%emt 0:00:00]} Ne3 {[%emt 0:00:00]} 50. Kxf4 {[%emt 0:00:00]} Nxc4 {[%emt 0:00:00]} 51. Bd5 {[%emt 0:00:00]} Na3 {[%emt 0:00:00]} 52. e4 {[%emt 0:00:00]} a5 {[%emt 0:00:00]} 53. e5 {[%emt 0:00:00]} b5 {[%emt 0:00:00]} 54. Ke4 {[%emt 0:00:00]} b4 {[%emt 0:00:00]} 55. Bb3 {[%emt 0:00:00]} Nb5 {[%emt 0:00:00]} 56. Kd3 {[%emt 0:00:00]} Nc7 {[%emt 0:00:00]} 57. Kd4 {[%emt 0:00:00]} Nb5+ {[%emt 0:00:00]} 58. Kd3 {[%emt 0:00:00]} Nc7 {[%emt 0:00:00]} 59. Kc4 {[%emt 0:00:00]} Ke6 {[%emt 0:00:00]} 60. Kd4+ {[%emt 0:00:00]} Kf5 {[%emt 0:00:00]} 61. Ba4 {[%emt 0:00:00]} Ke6 {[%emt 0:00:00]} 62. Bb3+ {[%emt 0:00:00]} Kf5 {[%emt 0:00:00]} 63. Ba4 {[%emt 0:00:00]} Ke6 {[%emt 0:00:00]} 64. Bc6 {[%emt 0:00:00]} Ke7 {[%emt 0:00:00]} 65. Kc5 {[%emt 0:00:00]} Ke6 {[%emt 0:00:00]} 66. Kb6 {[%emt 0:00:00]} Nd5+ {[%emt 0:00:00]} 67. Bxd5+ {[%emt 0:00:00]} Kxd5 {[%emt 0:00:00]} 68. Kxa5 {[%emt 0:00:00]} Kxe5 {[%emt 0:00:00]} 69. Kxb4 {[%emt 0:00:00]} Kd6 {[%emt 0:00:00]} 1/2-1/2

[Event "4NCL Div 1 2018-19"]
[Site "Telford"]
[Date "2019.02.09"]
[Round "5.5"]
[White "Pert, Nicholas"]
[Black "Blackburn, Jonathan L B"]
[Result "1-0"]
[ECO "A49"]
[WhiteElo "2542"]
[BlackElo "2212"]
[Annotator "ChessBase"]
[PlyCount "155"]
[EventDate "2018.11.10"]
[EventType "team-tourn"]
[EventCountry "GBR"]
[SourceTitle "playchess.com"]
[Source "ChessBase"]
[SourceQuality "1"]
[TimeControl "40/6000+30:3000+30"]

1. d4 {[%emt 0:00:00]} Nf6 {[%emt 0:00:00]} 2. Nf3 {[%emt 0:00:00]} g6 {[%emt 0:00:00]} 3. g3 {[%emt 0:00:00]} Bg7 {[%emt 0:00:00]} 4. Bg2 {[%emt 0:00:00]} O-O {[%emt 0:00:18]} 5. O-O {[%emt 0:00:00]} d6 {[%emt 0:00:08]} 6. Nc3 {[%emt 0:00:01]} Nbd7 {[%emt 0:01:24]} 7. a4 {[%emt 0:00:38]} a5 {[%emt 0:00:39]} 8. Bf4 {[%emt 0:00:45]} Nh5 {[%emt 0:02:22]} 9. Be3 {[%emt 0:01:18]} Nhf6 {[%emt 0:00:44]} 10. h3 {[%emt 0:11:38]} c6 {[%emt 0:13:50]} 11. Qc1 {[%emt 0:07:35]} Re8 {[%emt 0:04:00]} 12. Bh6 {[%emt 0:01:29]} e5 {[%emt 0:02:50]} 13. e4 {[%emt 0:04:20]} Qe7 {[%emt 0:06:55]} 14. Re1 {[%emt 0:01:46]} Qf8 {[%emt 0:27:54]} 15. Bxg7 {[%emt 0:03:58]} Kxg7 {[%emt 0:01:51]} 16. Qe3 {[%emt 0:02:37]} Qe7 {[%emt 0:11:17]} 17. Rad1 {[%emt 0:00:19]} Rf8 {[%emt 0:07:40]} 18. Nd2 {[%emt 0:02:37]} exd4 {[%emt 0:09:28]} 19. Qxd4 {[%emt 0:00:07]} c5 {[%emt 0:00:13]} 20. Qd3 {[%emt 0:05:35]} Ne5 {[%emt 0:02:46]} 21. Qf1 {[%emt 0:00:07]} Nc6 22. Nd5 {[%emt 0:06:33]} Qd8 {[%emt 0:02:41]} 23. Nc4 {[%emt 0:00:15]} Nxd5 {[%emt 0:02:29]} 24. Rxd5 {[%emt 0:00:44]} Be6 {[%emt 0:00:55]} 25. Rxd6 {[%emt 0:03:49]} Bxc4 {[%emt 0:00:15]} 26. Rxd8 {[%emt 0:00:16]} Bxf1 {[%emt 0:00:05]} 27. Rxa8 {[%emt 0:03:23]} Rxa8 {[%emt 0:00:11]} 28. Kxf1 {[%emt 0:00:07]} Rd8 {[%emt 0:02:03]} 29. e5 {[%emt 0:00:29]} Rd2 {[%emt 0:06:49]} 30. Bxc6 {[%emt 0:02:17]} bxc6 {[%emt 0:00:03]} 31. Re2 {[%emt 0:00:08]} Rd1+ {[%emt 0:00:22]} 32. Kg2 {[%emt 0:00:37]} Rd4 {[%emt 0:00:18]} 33. b3 {[%emt 0:00:57]} Kf8 34. e6 {[%emt 0:10:38]} f5 {[%emt 0:03:48]} 35. e7+ {[%emt 0:05:28]} Ke8 {[%emt 0:00:02]} 36. Re6 {[%emt 0:00:05]} c4 37. Rxc6 {[%emt 0:00:45]} cxb3 {[%emt 0:00:50]} 38. cxb3 {[%emt 0:00:03]} Rb4 {[%emt 0:00:20]} 39. Rc5 {[%emt 0:00:52]} Rxb3 {[%emt 0:00:17]} 40. Rxa5 {[%emt 0:00:04]} Kxe7 {[%emt 0:00:11]} 41. Ra7+ {[%emt 0:50:41]} Kf6 {[%emt 0:05:07]} 42. Rxh7 Ra3 {[%emt 0:08:57]} 43. Rh4 {[%emt 0:00:00]} g5 {[%emt 0:04:02]} 44. Rb4 {[%emt 0:00:00]} Kg6 {[%emt 0:00:59]} 45. h4 f4 {[%emt 0:05:13]} 46. Rb6+ {[%emt 0:00:00]} Kh5 {[%emt 0:07:20]} 47. Rb5 {[%emt 0:00:00]} fxg3 {[%emt 0:05:27]} 48. fxg3 {[%emt 0:00:00]} Rxa4 {[%emt 0:00:10]} 49. Rxg5+ {[%emt 0:00:00]} Kh6 {[%emt 0:00:03]} 50. Re5 {[%emt 0:00:00]} Kg6 {[%emt 0:00:12]} 51. Kf3 {[%emt 0:00:00]} Ra3+ {[%emt 0:00:11]} 52. Kf4 {[%emt 0:00:00]} Ra4+ {[%emt 0:00:04]} 53. Re4 {[%emt 0:00:00]} Ra1 {[%emt 0:00:14]} 54. Re5 {[%emt 0:00:00]} Ra4+ {[%emt 0:00:46]} 55. Re4 {[%emt 0:00:00]} Ra1 {[%emt 0:00:14]} 56. Re6+ {[%emt 0:00:00]} Kf7 {[%emt 0:00:03]} 57. Re3 {[%emt 0:00:00]} Kf6 {[%emt 0:00:18]} 58. g4 {[%emt 0:00:00]} Rf1+ {[%emt 0:00:14]} 59. Rf3 {[%emt 0:00:00]} Re1 {[%emt 0:00:27]} 60. h5 {[%emt 0:00:00]} Ra1 {[%emt 0:00:09]} 61. Kg3+ {[%emt 0:00:00]} Kg5 {[%emt 0:00:19]} 62. Rf5+ {[%emt 0:00:00]} Kh6 {[%emt 0:00:04]} 63. Rf6+ {[%emt 0:00:00]} Kg7 {[%emt 0:00:04]} 64. Rg6+ {[%emt 0:00:00]} Kh7 {[%emt 0:00:05]} 65. Rf6 {[%emt 0:00:00]} Kg7 {[%emt 0:00:55]} 66. Rg6+ {[%emt 0:00:00]} Kh7 {[%emt 0:00:05]} 67. Rf6 {[%emt 0:00:00]} Ra5 68. Kh4 {[%emt 0:00:00]} Kg7 {[%emt 0:00:36]} 69. Rf5 {[%emt 0:00:00]} Ra1 {[%emt 0:00:13]} 70. Kg5 {[%emt 0:00:00]} Ra7 {[%emt 0:00:04]} 71. h6+ {[%emt 0:00:00]} Kh7 {[%emt 0:00:11]} 72. Kh5 {[%emt 0:00:00]} Ra6 {[%emt 0:00:29]} 73. g5 {[%emt 0:00:00]} Ra8 {[%emt 0:00:13]} 74. g6+ {[%emt 0:00:00]} Kg8 {[%emt 0:01:51]} 75. h7+ {[%emt 0:00:00]} Kg7 {[%emt 0:00:09]} 76. Rf7+ {[%emt 0:00:00]} Kh8 {[%emt 0:00:02]} 77. Kh6 {[%emt 0:00:00]} Ra6 {[%emt 0:00:06]} 78. Rf8# {[%emt 0:00:00]} 1-0

[Event "4NCL Div 1 2018-19"]
[Site "Telford"]
[Date "2019.02.09"]
[Round "5.5"]
[White "Cyborowski, Lukasz"]
[Black "Kirk, Ezra"]
[Result "1-0"]
[ECO "C00"]
[WhiteElo "2520"]
[BlackElo "2439"]
[Annotator "ChessBase"]
[PlyCount "63"]
[EventDate "2018.11.10"]
[EventType "team-tourn"]
[EventCountry "GBR"]
[SourceTitle "playchess.com"]
[Source "ChessBase"]
[SourceQuality "1"]
[TimeControl "40/6000+30:3000+30"]

1. e4 {[%emt 0:00:00]} e6 {[%emt 0:00:30]} 2. d3 {[%emt 0:00:15]} d5 {[%emt 0:00:22]} 3. Qe2 {[%emt 0:01:10]} Nf6 {[%emt 0:01:15]} 4. Nf3 {[%emt 0:00:52]} c5 {[%emt 0:05:10]} 5. g3 {[%emt 0:01:57]} g6 {[%emt 0:15:57]} 6. Bg2 {[%emt 0:21:16]} Bg7 {[%emt 0:02:12]} 7. O-O {[%emt 0:00:15]} O-O {[%emt 0:04:59]} 8. e5 {[%emt 0:05:10]} Nfd7 {[%emt 0:00:55]} 9. c4 {[%emt 0:00:30]} Nc6 {[%emt 0:08:19]} 10. Bf4 {[%emt 0:00:21]} f6 {[%emt 0:04:53]} 11. exf6 {[%emt 0:07:24]} Nxf6 {[%emt 0:00:06]} 12. Nc3 {[%emt 0:03:43]} a6 {[%emt 0:08:00]} 13. Rfe1 {[%emt 0:04:37]} b6 {[%emt 0:10:35]} 14. Rad1 {[%emt 0:13:40]} Ra7 {[%emt 0:06:23]} 15. d4 {[%emt 0:15:58]} Nxd4 {[%emt 0:03:11]} 16. Nxd4 {[%emt 0:00:11]} cxd4 {[%emt 0:00:03]} 17. Rxd4 {[%emt 0:00:18]} Ne4 {[%emt 0:06:12]} 18. Rd3 {[%emt 0:00:30]} Nc5 {[%emt 0:21:39]} 19. Rdd1 {[%emt 0:00:47]} d4 {[%emt 0:00:22]} 20. b4 {[%emt 0:04:14]} Rd7 {[%emt 0:01:30]} 21. bxc5 {[%emt 0:01:03]} dxc3 {[%emt 0:00:52]} 22. Qxe6+ {[%emt 0:04:11]} Kh8 {[%emt 0:00:13]} 23. Rxd7 {[%emt 0:07:29]} Bxd7 {[%emt 0:00:06]} 24. Qxb6 {[%emt 0:01:15]} Bf5 {[%emt 0:01:35]} 25. Qxd8 {[%emt 0:10:09]} Rxd8 {[%emt 0:00:03]} 26. c6 {[%emt 0:00:06]} c2 {[%emt 0:00:44]} 27. c7 {[%emt 0:00:33]} Rd1 {[%emt 0:02:00]} 28. Rf1 {[%emt 0:00:04]} Bc3 {[%emt 0:05:05]} 29. Bf3 {[%emt 0:04:21]} Be1 {[%emt 0:00:18]} 30. Be4 {[%emt 0:01:11]} Bh3 {[%emt 0:00:49]} 31. c8=Q+ {[%emt 0:00:49]} Bxc8 {[%emt 0:00:16]} 32. Bxc2 {[%emt 0:00:04]} 1-0

[Event "4NCL Div 1 2018-19"]
[Site "Telford"]
[Date "2019.02.09"]
[Round "5.6"]
[White "Eggleston, David J"]
[Black "Galyas, Miklos"]
[Result "1-0"]
[ECO "B01"]
[WhiteElo "2408"]
[BlackElo "2495"]
[Annotator "ChessBase"]
[PlyCount "113"]
[EventDate "2018.11.10"]
[EventType "team-tourn"]
[EventCountry "GBR"]
[SourceTitle "playchess.com"]
[Source "ChessBase"]
[SourceQuality "1"]
[TimeControl "40/6000+30:3000+30"]

1. e4 {[%emt 0:00:18]} d5 {[%emt 0:00:00]} 2. exd5 {[%emt 0:01:51]} Qxd5 {[%emt 0:00:00]} 3. Nf3 {[%emt 0:00:10]} Bg4 {[%emt 0:00:41]} 4. Be2 {[%emt 0:00:07]} Nc6 {[%emt 0:00:25]} 5. d4 {[%emt 0:00:10]} O-O-O {[%emt 0:01:37]} 6. Be3 {[%emt 0:00:12]} e5 {[%emt 0:01:20]} 7. c4 {[%emt 0:00:50]} Qa5+ {[%emt 0:01:09]} 8. Bd2 {[%emt 0:00:29]} Bb4 {[%emt 0:01:16]} 9. d5 {[%emt 0:00:43]} Bxf3 {[%emt 0:03:04]} 10. Bxf3 {[%emt 0:00:52]} Bxd2+ {[%emt 0:00:32]} 11. Nxd2 {[%emt 0:00:15]} Nd4 {[%emt 0:00:08]} 12. O-O {[%emt 0:02:13]} Qb4 {[%emt 0:01:26]} 13. Qc1 {[%emt 0:05:57]} f5 {[%emt 0:01:45]} 14. Qc3 {[%emt 0:07:03]} Qxc3 {[%emt 0:01:20]} 15. bxc3 {[%emt 0:00:06]} Nxf3+ {[%emt 0:00:08]} 16. Nxf3 {[%emt 0:00:18]} e4 {[%emt 0:01:30]} 17. Nd4 {[%emt 0:03:17]} g6 {[%emt 0:01:39]} 18. Rab1 {[%emt 0:08:52]} Nf6 {[%emt 0:04:33]} 19. Rb3 {[%emt 0:10:26]} Rd6 {[%emt 0:27:45]} 20. Ra3 {[%emt 0:15:24]} a6 {[%emt 0:14:04]} 21. Rb1 {[%emt 0:04:37]} Nd7 {[%emt 0:06:52]} 22. Ne6 {[%emt 0:05:01]} Re8 {[%emt 0:07:40]} 23. Rab3 {[%emt 0:03:06]} Rdxe6 {[%emt 0:02:58]} 24. dxe6 {[%emt 0:00:47]} Nc5 {[%emt 0:00:05]} 25. R3b2 {[%emt 0:01:34]} Rxe6 {[%emt 0:00:10]} 26. Rd2 {[%emt 0:19:44]} Nd3 {[%emt 0:08:34]} 27. f3 {[%emt 0:00:25]} Rc6 {[%emt 0:04:50]} 28. fxe4 {[%emt 0:00:17]} fxe4 {[%emt 0:00:06]} 29. Re2 {[%emt 0:00:45]} Rxc4 {[%emt 0:00:37]} 30. Rf1 {[%emt 0:00:06]} b5 {[%emt 0:02:35]} 31. Rf7 {[%emt 0:05:13]} h5 {[%emt 0:01:33]} 32. h3 {[%emt 0:03:02]} Kb7 {[%emt 0:03:54]} 33. Rf6 {[%emt 0:03:18]} g5 {[%emt 0:03:31]} 34. Rf5 {[%emt 0:01:45]} h4 {[%emt 0:03:50]} 35. Rxg5 {[%emt 0:02:23]} Rxc3 {[%emt 0:01:06]} 36. Rg4 {[%emt 0:00:08]} b4 {[%emt 0:03:06]} 37. Rgxe4 {[%emt 0:02:57]} a5 {[%emt 0:00:33]} 38. Rxh4 {[%emt 0:00:27]} a4 {[%emt 0:00:48]} 39. Rd4 {[%emt 0:02:09]} b3 {[%emt 0:00:58]} 40. Rxa4 {[%emt 0:00:52]} b2 {[%emt 0:00:45]} 41. Rxb2+ {[%emt 0:50:05]} Nxb2 {[%emt 0:50:22]} 42. Rb4+ {[%emt 0:00:04]} Kc6 {[%emt 0:00:25]} 43. Rxb2 {[%emt 0:00:29]} Kd5 {[%emt 0:00:25]} 44. h4 {[%emt 0:02:08]} Ke5 {[%emt 0:00:00]} 45. Kh2 {[%emt 0:00:00]} c5 {[%emt 0:00:00]} 46. g3 {[%emt 0:00:00]} c4 {[%emt 0:00:00]} 47. Re2+ {[%emt 0:00:00]} Kd4 {[%emt 0:00:00]} 48. h5 {[%emt 0:00:00]} Ra3 {[%emt 0:00:00]} 49. g4 {[%emt 0:00:00]} c3 {[%emt 0:00:00]} 50. h6 {[%emt 0:00:00]} Kd3 {[%emt 0:00:00]} 51. Rg2 {[%emt 0:00:00]} Ra7 {[%emt 0:00:00]} 52. g5 {[%emt 0:00:00]} Re7 {[%emt 0:00:00]} 53. Kg3 {[%emt 0:00:00]} Re3+ {[%emt 0:00:00]} 54. Kf4 {[%emt 0:00:00]} Re2 {[%emt 0:00:00]} 55. Rg3+ {[%emt 0:00:00]} Kd4 {[%emt 0:00:00]} 56. Rxc3 {[%emt 0:00:00]} Kxc3 {[%emt 0:00:00]} 57. h7 {[%emt 0:00:00]} 1-0

[Event "4NCL Div 1 2018-19"]
[Site "Telford"]
[Date "2019.02.09"]
[Round "5.6"]
[White "Jones, Steven A"]
[Black "Le Roux, Jean-Pierre"]
[Result "0-1"]
[ECO "B08"]
[WhiteElo "2150"]
[BlackElo "2534"]
[Annotator "ChessBase"]
[PlyCount "76"]
[EventDate "2018.11.10"]
[EventType "team-tourn"]
[EventCountry "GBR"]
[SourceTitle "playchess.com"]
[Source "ChessBase"]
[SourceQuality "1"]
[TimeControl "40/6000+30:3000+30"]

1. e4 {[%emt 0:00:01]} g6 {[%emt 0:00:00]} 2. d4 {[%emt 0:00:54]} Bg7 {[%emt 0:00:24]} 3. Nc3 {[%emt 0:00:34]} c6 {[%emt 0:00:06]} 4. Nf3 {[%emt 0:01:03]} d6 5. a4 {[%emt 0:01:25]} Nf6 {[%emt 0:05:45]} 6. Be2 {[%emt 0:00:22]} O-O {[%emt 0:00:34]} 7. O-O {[%emt 0:01:14]} Nbd7 8. e5 {[%emt 0:05:35]} Ne8 {[%emt 0:01:53]} 9. Bf4 {[%emt 0:05:39]} dxe5 {[%emt 0:01:06]} 10. dxe5 Nc7 {[%emt 0:01:07]} 11. Qc1 Ne6 {[%emt 0:04:34]} 12. Bh6 {[%emt 0:12:16]} Nxe5 {[%emt 0:16:43]} 13. Nxe5 {[%emt 0:01:53]} Bxe5 {[%emt 0:00:06]} 14. Bxf8 {[%emt 0:00:13]} Qxf8 {[%emt 0:00:51]} 15. f4 {[%emt 0:05:30]} Bc7 {[%emt 0:08:46]} 16. a5 {[%emt 0:19:30]} Nd4 {[%emt 0:11:20]} 17. Bd3 {[%emt 0:01:44]} Be6 {[%emt 0:21:54]} 18. Kh1 {[%emt 0:12:06]} Rd8 {[%emt 0:05:28]} 19. Qe3 {[%emt 0:06:57]} a6 {[%emt 0:00:11]} 20. Ne4 {[%emt 0:01:57]} Nf5 {[%emt 0:01:46]} 21. Qf2 {[%emt 0:00:41]} Bc8 {[%emt 0:11:22]} 22. Rfd1 {[%emt 0:08:30]} Qg7 {[%emt 0:05:32]} 23. Nc3 {[%emt 0:01:02]} Rf8 {[%emt 0:01:45]} 24. Re1 {[%emt 0:03:51]} e5 25. fxe5 {[%emt 0:02:23]} Bxe5 {[%emt 0:02:33]} 26. Ra4 {[%emt 0:01:50]} Nd6 {[%emt 0:05:23]} 27. Qc5 {[%emt 0:02:46]} Re8 {[%emt 0:01:03]} 28. Qxd6 {[%emt 0:00:30]} Qh6 29. g3 {[%emt 0:03:59]} Bxd6 {[%emt 0:01:32]} 30. Rxe8+ {[%emt 0:00:06]} Kg7 {[%emt 0:00:05]} 31. Rxc8 Bxg3 {[%emt 0:01:40]} 32. h4 {[%emt 0:03:52]} Qd2 {[%emt 0:01:36]} 33. Ne2 {[%emt 0:01:56]} Qe1+ {[%emt 0:00:11]} 34. Kg2 {[%emt 0:00:48]} Qf2+ {[%emt 0:00:03]} 35. Kh3 {[%emt 0:00:04]} Qh2+ {[%emt 0:00:38]} 36. Kg4 {[%emt 0:00:28]} h5+ {[%emt 0:00:20]} 37. Kf3 {[%emt 0:00:21]} Qf2+ {[%emt 0:00:12]} 38. Ke4 {[%emt 0:00:05]} f5# {[%emt 0:00:22]} 0-1

[Event "4NCL Div 1 2018-19"]
[Site "Telford"]
[Date "2019.02.09"]
[Round "5.7"]
[White "Hebden, Mark L"]
[Black "Redmond, John P."]
[Result "1-0"]
[ECO "A46"]
[WhiteElo "2425"]
[BlackElo "2175"]
[Annotator "NA"]
[PlyCount "79"]
[EventDate "2018.11.10"]
[EventType "team-tourn"]
[EventCountry "GBR"]
[SourceTitle "playchess.com"]
[Source "ChessBase"]
[SourceQuality "1"]
[TimeControl "40/6000+30:3000+30"]

1. d4 e6 2. Nf3 Nf6 3. Bg5 h6 4. Bh4 d6 5. Nbd2 g5 6. Bg3 Nh5 7. e4 Bg7 8. c3 Nd7 9. Bd3 b6 10. Qe2 a6 11. O-O-O Qe7 12. Ne1 Nxg3 13. hxg3 Bb7 14. f4 c5 15. e5 b5 16. Ne4 Bxe4 17. Qxe4 d5 18. Qf3 c4 19. Bc2 Nb6 20. f5 exf5 21. Qxf5 Qe6 22. g4 Nc8 23. Qf3 Ne7 24. Bf5 Qb6 25. Nc2 a5 26. Ne3 Rb8 27. Bc2 Rb7 28. Rdf1 Qe6 29. Nf5 Nxf5 30. gxf5 Qc6 31. f6 Bf8 32. e6 Bd6 33. exf7+ Kf8 34. g3 b4 35. Bg6 bxc3 36. Re1 cxb2+ 37. Kb1 Rxf7 38. Bxf7 Kxf7 {[%emt 0:01:37]} 39. Qh5+ {[%emt 0:00:20]} Kf8 {[%emt 0:00:09]} 40. Qg6 {[%emt 0:00:21]} 1-0

[Event "4NCL Div 1 2018-19"]
[Site "Telford"]
[Date "2019.02.09"]
[Round "5.7"]
[White "Bulmaga, Irina"]
[Black "Arkell, Keith C"]
[Result "1/2-1/2"]
[ECO "B12"]
[WhiteElo "2386"]
[BlackElo "2443"]
[Annotator "NA"]
[PlyCount "36"]
[EventDate "2018.11.10"]
[EventType "team-tourn"]
[EventCountry "GBR"]
[SourceTitle "playchess.com"]
[Source "ChessBase"]
[SourceQuality "1"]
[TimeControl "40/6000+30:3000+30"]

1. e4 {[%emt 0:00:00]} c6 {[%emt 0:00:17]} 2. d4 {[%emt 0:00:00]} d5 {[%emt 0:00:15]} 3. e5 {[%emt 0:00:00]} c5 {[%emt 0:00:14]} 4. dxc5 {[%emt 0:00:19]} e6 {[%emt 0:00:13]} 5. a3 {[%emt 0:00:27]} a5 {[%emt 0:01:31]} 6. Nc3 {[%emt 0:04:01]} Nd7 {[%emt 0:05:07]} 7. Nf3 {[%emt 0:13:35]} Bxc5 {[%emt 0:00:34]} 8. Bd3 {[%emt 0:00:37]} Ne7 {[%emt 0:00:50]} 9. O-O {[%emt 0:02:11]} Ng6 {[%emt 0:00:21]} 10. Bg5 {[%emt 0:08:33]} Be7 {[%emt 0:01:40]} 11. Bxe7 {[%emt 0:00:56]} Qxe7 {[%emt 0:00:06]} 12. Re1 {[%emt 0:04:05]} O-O {[%emt 0:00:56]} 13. Qd2 {[%emt 0:04:10]} Nc5 {[%emt 0:02:23]} 14. Rad1 {[%emt 0:12:04]} Bd7 {[%emt 0:01:03]} 15. Nd4 {[%emt 0:05:09]} Nxd3 {[%emt 0:02:41]} 16. Qxd3 {[%emt 0:05:42]} Qg5 {[%emt 0:05:09]} 17. Nf3 {[%emt 0:05:16]} Qe7 {[%emt 0:02:16]} 18. Nd4 {[%emt 0:00:18]} Qg5 {[%emt 0:00:30]} 1/2-1/2

[Event "4NCL Div 1 2018-19"]
[Site "Telford"]
[Date "2019.02.09"]
[Round "5.8"]
[White "Kett, Tim"]
[Black "Milliet, Sophie"]
[Result "0-1"]
[ECO "B20"]
[WhiteElo "2206"]
[BlackElo "2386"]
[Annotator "NA"]
[PlyCount "68"]
[EventDate "2018.11.10"]
[EventType "team-tourn"]
[EventCountry "GBR"]
[SourceTitle "playchess.com"]
[Source "ChessBase"]
[SourceQuality "1"]
[TimeControl "40/6000+30:3000+30"]

1. e4 {[%emt 0:00:58]} c5 {[%emt 0:00:00]} 2. b3 {[%emt 0:00:20]} g6 {[%emt 0:00:18]} 3. Bb2 {[%emt 0:00:28]} Nf6 {[%emt 0:00:05]} 4. e5 {[%emt 0:04:35]} Nd5 {[%emt 0:00:40]} 5. Bc4 {[%emt 0:06:08]} Nb6 {[%emt 0:04:25]} 6. e6 {[%emt 0:05:47]} f6 7. exd7+ {[%emt 0:13:17]} Bxd7 {[%emt 0:01:48]} 8. Bd3 {[%emt 0:00:55]} e5 {[%emt 0:11:20]} 9. f4 {[%emt 0:11:17]} exf4 {[%emt 0:05:44]} 10. Qf3 {[%emt 0:02:12]} Bd6 {[%emt 0:05:08]} 11. Ne2 Bc6 {[%emt 0:05:03]} 12. Qh3 {[%emt 0:08:19]} O-O {[%emt 0:01:13]} 13. O-O f3 {[%emt 0:29:08]} 14. gxf3 {[%emt 0:07:24]} Qd7 {[%emt 0:01:29]} 15. Qh4 {[%emt 0:02:47]} Be5 {[%emt 0:11:24]} 16. Bxe5 {[%emt 0:04:16]} fxe5 {[%emt 0:01:05]} 17. Nbc3 Qg7 {[%emt 0:03:59]} 18. Be4 {[%emt 0:03:22]} Qd7 {[%emt 0:05:42]} 19. f4 {[%emt 0:03:11]} Qxd2 {[%emt 0:07:11]} 20. fxe5 {[%emt 0:02:18]} Qe3+ {[%emt 0:00:02]} 21. Kg2 {[%emt 0:00:39]} N8d7 {[%emt 0:02:53]} 22. e6 {[%emt 0:06:02]} Ne5 {[%emt 0:00:02]} 23. e7 {[%emt 0:01:11]} Rfe8 {[%emt 0:00:02]} 24. Rf4 {[%emt 0:00:47]} Bxe4+ {[%emt 0:03:05]} 25. Nxe4 {[%emt 0:11:02]} Qxe2+ {[%emt 0:00:02]} 26. Kh1 {[%emt 0:00:28]} Nd5 {[%emt 0:02:33]} 27. Nf6+ {[%emt 0:08:02]} Nxf6 {[%emt 0:00:03]} 28. Qxf6 {[%emt 0:00:07]} Ng4 29. Qf7+ {[%emt 0:05:55]} Kh8 {[%emt 0:00:23]} 30. Rxg4 {[%emt 0:02:10]} Qxg4 {[%emt 0:00:35]} 31. Re1 {[%emt 0:00:53]} Qf5 {[%emt 0:01:29]} 32. Qc4 Qf3+ {[%emt 0:01:43]} 33. Kg1 {[%emt 0:00:13]} Qf6 {[%emt 0:00:10]} 34. Qxc5 {[%emt 0:01:19]} Qb6 {[%emt 0:00:04]} 0-1